[Event "Titled Tuesday Blitz January 10 Late 2023"]
[White "Miszler, Levente"]
[Black "Floresvillar Gonzalez, Luis Migu"]
[WhiteFideId "763276"]
[BlackFideId "5100542"]
[WhiteElo "2271"]
[BlackElo "2043"]
[Result "1/2-1/2"]
[Round "06"]
[TimeControl "180+2"]
[Date "2023.01.10"]
[WhiteClock "0:00:08"]
[BlackClock "0:00:09"]

1. d4 {[%clk 0:00:00]}  d5 {[%clk 0:00:00]} 2. Nf3 {[%clk 0:02:58]}  c6 {[%clk 0:02:58]} 3. g3 {[%clk 0:02:53]}  Bg4 {[%clk 0:02:58]} 4. Bg2 {[%clk 0:02:51]}  Nd7 {[%clk 0:02:58]} 5. O-O {[%clk 0:02:51]}  e6 {[%clk 0:02:58]} 6. c4 {[%clk 0:02:51]}  Ngf6 {[%clk 0:02:57]} 7. Qb3 {[%clk 0:02:50]}  Qb6 {[%clk 0:02:56]} 8. Nbd2 {[%clk 0:02:48]}  Bd6 {[%clk 0:02:47]} 9. h3 {[%clk 0:02:46]}  Bxf3 {[%clk 0:02:42]} 10. Nxf3 {[%clk 0:02:42]}  dxc4 {[%clk 0:02:41]} 11. Qxc4 {[%clk 0:02:43]}  O-O {[%clk 0:02:35]} 12. b3 {[%clk 0:02:41]}  Rac8 {[%clk 0:02:34]} 13. Be3 {[%clk 0:02:32]}  Nd5 {[%clk 0:02:25]} 14. Nd2 {[%clk 0:02:20]}  Nxe3 {[%clk 0:02:14]} 15. fxe3 {[%clk 0:02:03]}  c5 {[%clk 0:02:10]} 16. Qd3 {[%clk 0:02:04]}  cxd4 {[%clk 0:01:58]} 17. exd4 {[%clk 0:02:00]}  Rfd8 {[%clk 0:01:55]} 18. Nc4 {[%clk 0:02:01]}  Qc7 {[%clk 0:01:48]} 19. Nxd6 {[%clk 0:02:01]}  Qxd6 {[%clk 0:01:45]} 20. Bxb7 {[%clk 0:02:00]}  Rc7 {[%clk 0:01:44]} 21. Bg2 {[%clk 0:01:58]}  Nf6 {[%clk 0:01:26]} 22. Rfd1 {[%clk 0:01:56]}  g6 {[%clk 0:01:09]} 23. g4 {[%clk 0:01:54]}  Rcd7 {[%clk 0:01:02]} 24. Qf3 {[%clk 0:01:48]}  Qe7 {[%clk 0:01:02]} 25. e3 {[%clk 0:01:37]}  h5 {[%clk 0:00:53]} 26. g5 {[%clk 0:01:33]}  Nd5 {[%clk 0:00:50]} 27. h4 {[%clk 0:01:28]}  e5 {[%clk 0:00:49]} 28. dxe5 {[%clk 0:01:29]}  Qxe5 {[%clk 0:00:43]} 29. Rd3 {[%clk 0:01:26]}  Nb4 {[%clk 0:00:42]} 30. Rxd7 {[%clk 0:01:24]}  Rxd7 {[%clk 0:00:37]} 31. Rf1 {[%clk 0:01:23]}  Nxa2 {[%clk 0:00:37]} 32. Qc6 {[%clk 0:01:04]}  Qxe3+ {[%clk 0:00:33]} 33. Kh1 {[%clk 0:00:53]}  Re7 {[%clk 0:00:30]} 34. Qc8+ {[%clk 0:00:51]}  Kg7 {[%clk 0:00:29]} 35. Qc4 {[%clk 0:00:33]}  Nc3 {[%clk 0:00:28]} 36. Rf3 {[%clk 0:00:29]}  Qe1+ {[%clk 0:00:24]} 37. Kh2 {[%clk 0:00:21]}  Ne4 {[%clk 0:00:23]} 38. Qd4+ {[%clk 0:00:21]}  Kh7 {[%clk 0:00:20]} 39. Qc4 {[%clk 0:00:19]}  Nd2 {[%clk 0:00:18]} 40. Rxf7+ {[%clk 0:00:06]}  Rxf7 {[%clk 0:00:16]} 41. Qxf7+ {[%clk 0:00:06]}  Kh8 {[%clk 0:00:16]} 42. Qf8+ {[%clk 0:00:07]}  Kh7 {[%clk 0:00:16]} 43. Qh6+ {[%clk 0:00:07]}  Kg8 {[%clk 0:00:16]} 44. Qxg6+ {[%clk 0:00:08]}  Kf8 {[%clk 0:00:15]} 45. Qf6+ {[%clk 0:00:09]}  Ke8 {[%clk 0:00:15]} 46. Qg6+ {[%clk 0:00:08]}  Ke7 {[%clk 0:00:15]} 47. Qxh5 {[%clk 0:00:07]}  Qe5+ {[%clk 0:00:13]} 48. Kh1 {[%clk 0:00:08]}  Qe1+ {[%clk 0:00:11]} 49. Kh2 {[%clk 0:00:08]}  Qe5+ {[%clk 0:00:10]} 50. Kh3 {[%clk 0:00:09]}  Qe3+ {[%clk 0:00:10]} 51. Kh2 {[%clk 0:00:08]}  Qe5+ {[%clk 0:00:09]} 1/2-1/2


[Site "https://www.chess.com"]

[Event "Titled Tuesday Blitz January 10 Late 2023"]
[White "Gutkin, Ilya"]
[Black "Adel, Sara"]
[WhiteFideId "16203470"]
[BlackFideId "10616764"]
[WhiteElo "2273"]
[BlackElo "1739"]
[Result "1-0"]
[Round "06"]
[TimeControl "180+2"]
[Date "2023.01.10"]
[WhiteClock "0:02:24"]
[BlackClock "0:00:25"]

1. Nf3 {[%clk 0:00:00]}  Nf6 {[%clk 0:00:00]} 2. g3 {[%clk 0:03:00]}  g6 {[%clk 0:02:23]} 3. b3 {[%clk 0:02:59]}  Bg7 {[%clk 0:02:22]} 4. Bb2 {[%clk 0:03:00]}  d6 {[%clk 0:02:23]} 5. d4 {[%clk 0:03:00]}  O-O {[%clk 0:02:24]} 6. Bg2 {[%clk 0:03:00]}  Nc6 {[%clk 0:02:25]} 7. O-O {[%clk 0:03:00]}  e5 {[%clk 0:02:25]} 8. dxe5 {[%clk 0:03:00]}  Ng4 {[%clk 0:02:25]} 9. c4 {[%clk 0:02:59]}  Ncxe5 {[%clk 0:02:25]} 10. Nc3 {[%clk 0:02:59]}  Bf5 {[%clk 0:02:23]} 11. Qd2 {[%clk 0:02:59]}  Qd7 {[%clk 0:02:08]} 12. Nxe5 {[%clk 0:02:56]}  Bxe5 {[%clk 0:02:04]} 13. Bxb7 {[%clk 0:02:51]}  h5 {[%clk 0:01:59]} 14. Bf3 {[%clk 0:02:51]}  h4 {[%clk 0:01:34]} 15. Nd5 {[%clk 0:02:40]}  hxg3 {[%clk 0:01:32]} 16. hxg3 {[%clk 0:02:39]}  Rae8 {[%clk 0:00:33]} 17. Bxg4 {[%clk 0:02:33]}  Bxb2 {[%clk 0:00:25]} 18. Qxb2 {[%clk 0:02:24]} 1-0


[Site "https://www.chess.com"]

[Event "Titled Tuesday Blitz January 10 Late 2023"]
[White "Kosakowski, Jakub"]
[Black "ritanovikova"]
[WhiteFideId "1185080"]
[WhiteElo "2485"]
[BlackElo "2115"]
[Result "1-0"]
[Round "06"]
[TimeControl "180+2"]
[Date "2023.01.10"]
[WhiteClock "0:00:26"]
[BlackClock "0:00:04"]

1. Nf3 {[%clk 0:00:00]}  Nf6 {[%clk 0:00:00]} 2. g3 {[%clk 0:02:23]}  g6 {[%clk 0:02:59]} 3. Bg2 {[%clk 0:02:06]}  Bg7 {[%clk 0:02:59]} 4. O-O {[%clk 0:02:07]}  O-O {[%clk 0:02:59]} 5. b3 {[%clk 0:02:08]}  Ne4 {[%clk 0:03:00]} 6. d4 {[%clk 0:02:08]}  d5 {[%clk 0:02:50]} 7. Bb2 {[%clk 0:02:08]}  b6 {[%clk 0:02:49]} 8. Nbd2 {[%clk 0:02:08]}  Bb7 {[%clk 0:02:44]} 9. e3 {[%clk 0:02:07]}  Nd7 {[%clk 0:02:44]} 10. c4 {[%clk 0:02:05]}  c6 {[%clk 0:02:41]} 11. Rc1 {[%clk 0:02:05]}  Ndf6 {[%clk 0:02:39]} 12. Ne5 {[%clk 0:02:03]}  Nxd2 {[%clk 0:02:37]} 13. Qxd2 {[%clk 0:01:58]}  Qd6 {[%clk 0:02:34]} 14. cxd5 {[%clk 0:01:58]}  cxd5 {[%clk 0:02:24]} 15. Rc2 {[%clk 0:01:44]}  Rac8 {[%clk 0:02:23]} 16. Rfc1 {[%clk 0:01:31]}  Rxc2 {[%clk 0:02:18]} 17. Rxc2 {[%clk 0:01:31]}  Rc8 {[%clk 0:02:18]} 18. h3 {[%clk 0:01:21]}  Nd7 {[%clk 0:02:18]} 19. Nd3 {[%clk 0:01:20]}  e6 {[%clk 0:02:09]} 20. Rxc8+ {[%clk 0:01:17]}  Bxc8 {[%clk 0:01:55]} 21. Qc1 {[%clk 0:01:10]}  Ba6 {[%clk 0:01:54]} 22. Ba3 {[%clk 0:01:09]}  Qb8 {[%clk 0:01:51]} 23. Nb4 {[%clk 0:01:08]}  Bb7 {[%clk 0:01:47]} 24. Nc6 {[%clk 0:01:09]}  Bxc6 {[%clk 0:01:41]} 25. Qxc6 {[%clk 0:01:09]}  Nf6 {[%clk 0:01:22]} 26. Bf1 {[%clk 0:01:09]}  h5 {[%clk 0:01:19]} 27. Bd6 {[%clk 0:01:10]}  Qd8 {[%clk 0:01:16]} 28. Bb5 {[%clk 0:01:08]}  Ne4 {[%clk 0:01:15]} 29. Bc7 {[%clk 0:01:08]}  Qf6 {[%clk 0:01:14]} 30. Qc2 {[%clk 0:01:00]}  Kh7 {[%clk 0:01:08]} 31. Kg2 {[%clk 0:01:00]}  Qg5 {[%clk 0:00:58]} 32. f3 {[%clk 0:00:58]}  Nxg3 {[%clk 0:00:48]} 33. h4 {[%clk 0:00:54]}  Qf5 {[%clk 0:00:42]} 34. Bd3 {[%clk 0:00:53]}  Qf6 {[%clk 0:00:35]} 35. Bxg3 {[%clk 0:00:52]}  Qe7 {[%clk 0:00:26]} 36. Kf1 {[%clk 0:00:51]}  Bf6 {[%clk 0:00:26]} 37. Qh2 {[%clk 0:00:41]}  Qa3 {[%clk 0:00:25]} 38. Qc2 {[%clk 0:00:36]}  Qe7 {[%clk 0:00:23]} 39. Qf2 {[%clk 0:00:27]}  Qa3 {[%clk 0:00:21]} 40. Kg2 {[%clk 0:00:25]}  Qc1 {[%clk 0:00:20]} 41. Bf4 {[%clk 0:00:25]}  Qc3 {[%clk 0:00:18]} 42. Qc2 {[%clk 0:00:26]}  Qxc2+ {[%clk 0:00:17]} 43. Bxc2 {[%clk 0:00:24]}  Bxh4 {[%clk 0:00:16]} 44. Bb8 {[%clk 0:00:25]}  a6 {[%clk 0:00:17]} 45. Bc7 {[%clk 0:00:25]}  b5 {[%clk 0:00:15]} 46. a4 {[%clk 0:00:26]}  bxa4 {[%clk 0:00:15]} 47. bxa4 {[%clk 0:00:26]}  Bg5 {[%clk 0:00:15]} 48. f4 {[%clk 0:00:27]}  Be7 {[%clk 0:00:15]} 49. Bd3 {[%clk 0:00:27]}  f6 {[%clk 0:00:14]} 50. Bxa6 {[%clk 0:00:28]}  g5 {[%clk 0:00:12]} 51. fxg5 {[%clk 0:00:28]}  fxg5 {[%clk 0:00:12]} 52. Bc8 {[%clk 0:00:28]}  Ba3 {[%clk 0:00:13]} 53. Bxe6 {[%clk 0:00:29]}  Bc1 {[%clk 0:00:04]} 54. Kf2 {[%clk 0:00:28]}  h4 {[%clk 0:00:04]} 55. a5 {[%clk 0:00:26]} 1-0


[Site "https://www.chess.com"]

[Event "Titled Tuesday Blitz January 10 Late 2023"]
[White "De Souza, Cristiano Gomes"]
[Black "Gurevich, Dmitry"]
[WhiteFideId "2151758"]
[BlackFideId "2000407"]
[WhiteElo "2018"]
[BlackElo "2393"]
[Result "0-1"]
[Round "06"]
[TimeControl "180+2"]
[Date "2023.01.10"]
[WhiteClock "0:00:30"]
[BlackClock "0:00:27"]

1. d4 {[%clk 0:00:00]}  Nf6 {[%clk 0:00:00]} 2. c4 {[%clk 0:02:59]}  a6 {[%clk 0:02:59]} 3. Nc3 {[%clk 0:02:56]}  c5 {[%clk 0:02:59]} 4. d5 {[%clk 0:02:56]}  b5 {[%clk 0:02:58]} 5. cxb5 {[%clk 0:02:56]}  axb5 {[%clk 0:02:58]} 6. Nxb5 {[%clk 0:02:56]}  Qa5+ {[%clk 0:02:59]} 7. Nc3 {[%clk 0:02:56]}  Bb7 {[%clk 0:02:59]} 8. Bd2 {[%clk 0:02:56]}  Qb6 {[%clk 0:02:59]} 9. e4 {[%clk 0:02:53]}  e6 {[%clk 0:02:58]} 10. Be2 {[%clk 0:02:49]}  exd5 {[%clk 0:02:58]} 11. e5 {[%clk 0:02:43]}  Ne4 {[%clk 0:02:57]} 12. Nxe4 {[%clk 0:02:43]}  dxe4 {[%clk 0:02:54]} 13. Bc3 {[%clk 0:02:42]}  Nc6 {[%clk 0:02:54]} 14. Nh3 {[%clk 0:02:42]}  Nd4 {[%clk 0:02:48]} 15. Kf1 {[%clk 0:02:39]}  Nxe2 {[%clk 0:02:48]} 16. Kxe2 {[%clk 0:02:36]}  Ba6+ {[%clk 0:02:45]} 17. Ke3 {[%clk 0:02:35]}  Be7 {[%clk 0:02:37]} 18. Nf4 {[%clk 0:02:35]}  O-O {[%clk 0:02:33]} 19. h4 {[%clk 0:02:34]}  Bb7 {[%clk 0:02:30]} 20. Nd5 {[%clk 0:02:33]}  Qh6+ {[%clk 0:02:14]} 21. Ke2 {[%clk 0:02:28]}  Bd8 {[%clk 0:02:02]} 22. g3 {[%clk 0:02:21]}  Ra6 {[%clk 0:01:54]} 23. Ne3 {[%clk 0:02:15]}  Bc6 {[%clk 0:01:43]} 24. Kf1 {[%clk 0:02:07]}  f6 {[%clk 0:01:30]} 25. Ng4 {[%clk 0:02:06]}  Qg6 {[%clk 0:01:25]} 26. h5 {[%clk 0:01:58]}  Qf5 {[%clk 0:01:21]} 27. h6 {[%clk 0:01:55]}  fxe5 {[%clk 0:01:19]} 28. hxg7 {[%clk 0:01:51]}  Rf6 {[%clk 0:01:16]} 29. Nxf6+ {[%clk 0:01:47]}  Bxf6 {[%clk 0:01:12]} 30. Qc2 {[%clk 0:01:37]}  Bb5+ {[%clk 0:01:10]} 31. Kg1 {[%clk 0:01:24]}  Kxg7 {[%clk 0:00:52]} 32. Re1 {[%clk 0:01:24]}  Bd3 {[%clk 0:00:46]} 33. Qb3 {[%clk 0:01:18]}  c4 {[%clk 0:00:45]} 34. Qb7 {[%clk 0:01:13]}  Rd6 {[%clk 0:00:40]} 35. Re3 {[%clk 0:01:08]}  Be2 {[%clk 0:00:40]} 36. Qxe4 {[%clk 0:00:59]}  Qxe4 {[%clk 0:00:36]} 37. Rxe4 {[%clk 0:00:43]}  Rd1+ {[%clk 0:00:34]} 38. Kh2 {[%clk 0:00:42]}  Rxh1+ {[%clk 0:00:30]} 39. Kxh1 {[%clk 0:00:36]}  Bf3+ {[%clk 0:00:30]} 40. Kg1 {[%clk 0:00:37]}  Bxe4 {[%clk 0:00:30]} 41. a4 {[%clk 0:00:37]}  d5 {[%clk 0:00:31]} 42. a5 {[%clk 0:00:34]}  d4 {[%clk 0:00:28]} 43. Bb4 {[%clk 0:00:35]}  Bb7 {[%clk 0:00:28]} 44. Bc5 {[%clk 0:00:34]}  e4 {[%clk 0:00:27]} 45. Kf1 {[%clk 0:00:31]}  d3 {[%clk 0:00:27]} 46. Ke1 {[%clk 0:00:30]}  Bxb2 {[%clk 0:00:27]} 0-1


[Site "https://www.chess.com"]

[Event "Titled Tuesday Blitz January 10 Late 2023"]
[White "Smith, Garrett L"]
[Black "Weisz, Bryan"]
[WhiteFideId "2024829"]
[BlackFideId "30934133"]
[WhiteElo "2047"]
[BlackElo "1973"]
[Result "1-0"]
[Round "06"]
[TimeControl "180+2"]
[Date "2023.01.10"]
[WhiteClock "0:00:36"]
[BlackClock "0:00:10"]

1. e4 {[%clk 0:00:00]}  c6 {[%clk 0:00:00]} 2. d4 {[%clk 0:03:00]}  d5 {[%clk 0:02:59]} 3. e5 {[%clk 0:03:00]}  Bf5 {[%clk 0:02:59]} 4. Nd2 {[%clk 0:03:01]}  e6 {[%clk 0:02:53]} 5. Nb3 {[%clk 0:03:01]}  c5 {[%clk 0:02:52]} 6. dxc5 {[%clk 0:03:01]}  Bxc5 {[%clk 0:02:52]} 7. Bb5+ {[%clk 0:02:54]}  Nc6 {[%clk 0:02:52]} 8. Nf3 {[%clk 0:02:42]}  Ne7 {[%clk 0:02:51]} 9. O-O {[%clk 0:02:29]}  Bb6 {[%clk 0:02:39]} 10. Bg5 {[%clk 0:02:22]}  O-O {[%clk 0:02:34]} 11. c3 {[%clk 0:02:19]}  Qc7 {[%clk 0:02:26]} 12. Re1 {[%clk 0:02:17]}  Ng6 {[%clk 0:02:14]} 13. Bxc6 {[%clk 0:02:12]}  bxc6 {[%clk 0:02:11]} 14. Nbd4 {[%clk 0:02:04]}  Bg4 {[%clk 0:02:10]} 15. h3 {[%clk 0:02:03]}  Bxf3 {[%clk 0:02:09]} 16. Nxf3 {[%clk 0:01:56]}  f6 {[%clk 0:01:49]} 17. exf6 {[%clk 0:01:43]}  gxf6 {[%clk 0:01:49]} 18. Bh6 {[%clk 0:01:39]}  Rfe8 {[%clk 0:01:50]} 19. Qd2 {[%clk 0:01:39]}  e5 {[%clk 0:01:50]} 20. a4 {[%clk 0:01:33]}  e4 {[%clk 0:01:50]} 21. Nd4 {[%clk 0:01:32]}  Qe5 {[%clk 0:01:50]} 22. g3 {[%clk 0:01:31]}  c5 {[%clk 0:01:46]} 23. Nb5 {[%clk 0:01:26]}  a6 {[%clk 0:01:40]} 24. a5 {[%clk 0:01:18]}  Bd8 {[%clk 0:01:38]} 25. Na3 {[%clk 0:01:13]}  Bxa5 {[%clk 0:01:32]} 26. Nc4 {[%clk 0:01:12]}  dxc4 {[%clk 0:01:31]} 27. Rxa5 {[%clk 0:01:11]}  Rad8 {[%clk 0:01:31]} 28. Qe2 {[%clk 0:01:10]}  Rd3 {[%clk 0:01:27]} 29. Rxa6 {[%clk 0:01:10]}  f5 {[%clk 0:01:18]} 30. Qh5 {[%clk 0:01:09]}  Rxg3+ {[%clk 0:01:00]} 31. fxg3 {[%clk 0:01:00]}  Qxg3+ {[%clk 0:00:45]} 32. Kf1 {[%clk 0:00:59]}  e3 {[%clk 0:00:45]} 33. Qxf5 {[%clk 0:00:58]}  Qh4 {[%clk 0:00:41]} 34. Rxe3 {[%clk 0:00:40]}  Rxe3 {[%clk 0:00:10]} 35. Ra8+ {[%clk 0:00:36]} 1-0


[Site "https://www.chess.com"]

[Event "Titled Tuesday Blitz January 10 Late 2023"]
[White "Vasques, Antonio Pedro Freixial"]
[Black "Sabar, Ethmane Daouda"]
[WhiteFideId "1908332"]
[BlackFideId "19600097"]
[WhiteElo "2214"]
[BlackElo "2040"]
[Result "1-0"]
[Round "06"]
[TimeControl "180+2"]
[Date "2023.01.10"]
[WhiteClock "0:00:13"]
[BlackClock "0:00:08"]

1. e4 {[%clk 0:00:00]}  c5 {[%clk 0:00:00]} 2. Nc3 {[%clk 0:02:54]}  Nc6 {[%clk 0:02:59]} 3. Bb5 {[%clk 0:02:53]}  Nd4 {[%clk 0:02:56]} 4. Nf3 {[%clk 0:02:52]}  Nxb5 {[%clk 0:02:54]} 5. Nxb5 {[%clk 0:02:51]}  a6 {[%clk 0:02:54]} 6. Nc3 {[%clk 0:02:52]}  d6 {[%clk 0:02:54]} 7. d4 {[%clk 0:02:52]}  cxd4 {[%clk 0:02:48]} 8. Qxd4 {[%clk 0:02:50]}  e5 {[%clk 0:02:49]} 9. Qd3 {[%clk 0:02:50]}  Be7 {[%clk 0:02:45]} 10. Be3 {[%clk 0:02:48]}  Nf6 {[%clk 0:02:41]} 11. O-O-O {[%clk 0:02:42]}  O-O {[%clk 0:02:39]} 12. h3 {[%clk 0:02:36]}  b5 {[%clk 0:02:30]} 13. g4 {[%clk 0:02:21]}  Be6 {[%clk 0:02:28]} 14. g5 {[%clk 0:02:20]}  Nh5 {[%clk 0:02:26]} 15. Kb1 {[%clk 0:02:01]}  Qa5 {[%clk 0:02:22]} 16. Nh4 {[%clk 0:01:55]}  Rfd8 {[%clk 0:02:17]} 17. Nd5 {[%clk 0:01:51]}  Bf8 {[%clk 0:02:05]} 18. Bb6 {[%clk 0:01:45]}  Qa4 {[%clk 0:01:54]} 19. Bxd8 {[%clk 0:01:40]}  Rxd8 {[%clk 0:01:47]} 20. b3 {[%clk 0:01:40]}  Qa3 {[%clk 0:01:45]} 21. Nf5 {[%clk 0:01:32]}  Qc5 {[%clk 0:01:43]} 22. Qf3 {[%clk 0:01:24]}  Nf4 {[%clk 0:01:15]} 23. Nxf4 {[%clk 0:01:11]}  exf4 {[%clk 0:01:04]} 24. Qxf4 {[%clk 0:01:04]}  a5 {[%clk 0:01:05]} 25. Rhg1 {[%clk 0:01:03]}  Bxf5 {[%clk 0:01:04]} 26. Qxf5 {[%clk 0:00:55]}  Qc3 {[%clk 0:00:49]} 27. Qxb5 {[%clk 0:00:52]}  g6 {[%clk 0:00:45]} 28. Qd3 {[%clk 0:00:50]}  Qe5 {[%clk 0:00:42]} 29. Qd4 {[%clk 0:00:48]}  Qe7 {[%clk 0:00:41]} 30. f4 {[%clk 0:00:42]}  Bg7 {[%clk 0:00:38]} 31. e5 {[%clk 0:00:31]}  h5 {[%clk 0:00:38]} 32. gxh6 {[%clk 0:00:32]}  Bxh6 {[%clk 0:00:33]} 33. f5 {[%clk 0:00:26]}  Kh7 {[%clk 0:00:31]} 34. exd6 {[%clk 0:00:26]}  Qd7 {[%clk 0:00:12]} 35. fxg6+ {[%clk 0:00:22]}  fxg6 {[%clk 0:00:08]} 36. Qg4 {[%clk 0:00:17]}  Qg7 {[%clk 0:00:09]} 37. Rge1 {[%clk 0:00:15]}  Rd7 {[%clk 0:00:09]} 38. Qxd7 {[%clk 0:00:14]}  Qxd7 {[%clk 0:00:07]} 39. Re7+ {[%clk 0:00:13]}  Qxe7 {[%clk 0:00:08]} 40. dxe7 {[%clk 0:00:13]} 1-0


[Site "https://www.chess.com"]

[Event "Titled Tuesday Blitz January 10 Late 2023"]
[White "Bulgurlu, Okan"]
[Black "Abdyzhaparov, Aidar"]
[WhiteFideId "6352316"]
[BlackFideId "13800361"]
[WhiteElo "1908"]
[BlackElo "1978"]
[Result "1/2-1/2"]
[Round "06"]
[TimeControl "180+2"]
[Date "2023.01.10"]
[WhiteClock "0:00:05"]
[BlackClock "0:00:28"]

1. e4 {[%clk 0:00:00]}  d6 {[%clk 0:00:00]} 2. Nf3 {[%clk 0:02:55]}  Nf6 {[%clk 0:03:00]} 3. Nc3 {[%clk 0:02:55]}  e5 {[%clk 0:03:01]} 4. Bc4 {[%clk 0:02:54]}  Be7 {[%clk 0:03:02]} 5. d4 {[%clk 0:02:54]}  Nbd7 {[%clk 0:03:01]} 6. dxe5 {[%clk 0:02:54]}  dxe5 {[%clk 0:03:00]} 7. Bxf7+ {[%clk 0:02:54]}  Kxf7 {[%clk 0:02:58]} 8. Ng5+ {[%clk 0:02:45]}  Kg8 {[%clk 0:02:59]} 9. Ne6 {[%clk 0:02:45]}  Qe8 {[%clk 0:02:57]} 10. Nxc7 {[%clk 0:02:16]}  Qg6 {[%clk 0:02:57]} 11. Nxa8 {[%clk 0:02:14]}  Qxg2 {[%clk 0:02:58]} 12. Rf1 {[%clk 0:02:05]}  Nc5 {[%clk 0:02:58]} 13. Be3 {[%clk 0:02:02]}  Bh3 {[%clk 0:02:58]} 14. Qe2 {[%clk 0:01:58]}  Qxf1+ {[%clk 0:02:55]} 15. Qxf1 {[%clk 0:01:54]}  Bxf1 {[%clk 0:02:49]} 16. Kxf1 {[%clk 0:01:54]}  Kf7 {[%clk 0:02:50]} 17. Nc7 {[%clk 0:01:55]}  Ncxe4 {[%clk 0:02:45]} 18. Nxe4 {[%clk 0:01:54]}  Nxe4 {[%clk 0:02:40]} 19. Bxa7 {[%clk 0:01:51]}  Rc8 {[%clk 0:02:41]} 20. Nd5 {[%clk 0:01:49]}  Rxc2 {[%clk 0:02:41]} 21. Re1 {[%clk 0:01:44]}  Nd2+ {[%clk 0:02:40]} 22. Kg2 {[%clk 0:01:41]}  Nc4 {[%clk 0:02:13]} 23. b3 {[%clk 0:01:39]}  Rxa2 {[%clk 0:02:14]} 24. bxc4 {[%clk 0:01:35]}  Rxa7 {[%clk 0:02:01]} 25. Rxe5 {[%clk 0:01:31]}  Bd6 {[%clk 0:02:00]} 26. Re4 {[%clk 0:01:20]}  Ra4 {[%clk 0:01:51]} 27. Nb6 {[%clk 0:01:18]}  Rb4 {[%clk 0:01:38]} 28. Nd5 {[%clk 0:01:08]}  Rb2 {[%clk 0:01:33]} 29. h3 {[%clk 0:01:08]}  g5 {[%clk 0:01:31]} 30. Kf3 {[%clk 0:01:01]}  Bc5 {[%clk 0:01:29]} 31. Re2 {[%clk 0:00:44]}  Rb3+ {[%clk 0:01:24]} 32. Kg4 {[%clk 0:00:44]}  b5 {[%clk 0:01:22]} 33. cxb5 {[%clk 0:00:43]}  Rxb5 {[%clk 0:01:04]} 34. Re5 {[%clk 0:00:41]}  h6 {[%clk 0:01:05]} 35. h4 {[%clk 0:00:25]}  gxh4 {[%clk 0:00:56]} 36. Nc3 {[%clk 0:00:18]}  Rb4+ {[%clk 0:00:50]} 37. Kf5 {[%clk 0:00:12]}  Bxf2 {[%clk 0:00:46]} 38. Ne4 {[%clk 0:00:12]}  Bg3 {[%clk 0:00:39]} 39. Nd6+ {[%clk 0:00:12]}  Kg7 {[%clk 0:00:30]} 40. Re7+ {[%clk 0:00:11]}  Kf8 {[%clk 0:00:27]} 41. Re8+ {[%clk 0:00:12]}  Kg7 {[%clk 0:00:27]} 42. Re7+ {[%clk 0:00:12]}  Kf8 {[%clk 0:00:27]} 43. Re8+ {[%clk 0:00:11]}  Kg7 {[%clk 0:00:28]} 44. Re7+ {[%clk 0:00:05]} 1/2-1/2


[Site "https://www.chess.com"]

[Event "Titled Tuesday Blitz January 10 Late 2023"]
[White "Rosenberg, Evan S"]
[Black "Sailer, Mike"]
[WhiteFideId "2019299"]
[BlackFideId "2012901"]
[WhiteElo "1956"]
[BlackElo "2109"]
[Result "1-0"]
[Round "06"]
[TimeControl "180+2"]
[Date "2023.01.10"]
[WhiteClock "0:00:38"]
[BlackClock "0:00:04"]

1. d4 {[%clk 0:00:00]}  d5 {[%clk 0:00:00]} 2. Nf3 {[%clk 0:03:00]}  Bf5 {[%clk 0:02:56]} 3. c4 {[%clk 0:03:01]}  e6 {[%clk 0:02:55]} 4. Qb3 {[%clk 0:02:58]}  Nc6 {[%clk 0:02:55]} 5. Bd2 {[%clk 0:02:50]}  Rb8 {[%clk 0:02:54]} 6. e3 {[%clk 0:02:50]}  Nf6 {[%clk 0:02:50]} 7. Nh4 {[%clk 0:02:36]}  Bxb1 {[%clk 0:02:38]} 8. Rxb1 {[%clk 0:02:36]}  Ne4 {[%clk 0:02:25]} 9. Nf3 {[%clk 0:02:35]}  Nxd2 {[%clk 0:02:26]} 10. Nxd2 {[%clk 0:02:36]}  Bb4 {[%clk 0:02:22]} 11. cxd5 {[%clk 0:02:37]}  Bxd2+ {[%clk 0:02:21]} 12. Kxd2 {[%clk 0:02:33]}  exd5 {[%clk 0:02:21]} 13. Bd3 {[%clk 0:02:33]}  O-O {[%clk 0:02:20]} 14. h4 {[%clk 0:02:30]}  f5 {[%clk 0:02:19]} 15. Rbc1 {[%clk 0:02:30]}  Kh8 {[%clk 0:01:51]} 16. g3 {[%clk 0:01:59]}  Na5 {[%clk 0:01:39]} 17. Qc3 {[%clk 0:01:47]}  c6 {[%clk 0:01:07]} 18. b4 {[%clk 0:01:38]}  Nc4+ {[%clk 0:01:00]} 19. Bxc4 {[%clk 0:01:37]}  dxc4 {[%clk 0:01:01]} 20. Qxc4 {[%clk 0:01:38]}  a5 {[%clk 0:01:01]} 21. b5 {[%clk 0:01:38]}  cxb5 {[%clk 0:00:57]} 22. Qxb5 {[%clk 0:01:34]}  Qe7 {[%clk 0:00:53]} 23. Ke2 {[%clk 0:01:34]}  f4 {[%clk 0:00:44]} 24. gxf4 {[%clk 0:00:54]}  Rxf4 {[%clk 0:00:33]} 25. Qe5 {[%clk 0:00:53]}  Qxe5 {[%clk 0:00:28]} 26. dxe5 {[%clk 0:00:51]}  Ra4 {[%clk 0:00:13]} 27. Rc2 {[%clk 0:00:51]}  Kg8 {[%clk 0:00:04]} 28. f4 {[%clk 0:00:50]}  b5 {[%clk 0:00:04]} 29. h5 {[%clk 0:00:48]}  b4 {[%clk 0:00:04]} 30. h6 {[%clk 0:00:44]}  g6 {[%clk 0:00:03]} 31. Rd1 {[%clk 0:00:43]}  b3 {[%clk 0:00:03]} 32. axb3 {[%clk 0:00:40]}  Rxb3 {[%clk 0:00:03]} 33. Rd7 {[%clk 0:00:39]}  Rab4 {[%clk 0:00:04]} 34. Rc8# {[%clk 0:00:38]} 1-0


[Site "https://www.chess.com"]